bitfinex/quotes_BTCUSD_20240703
["timestamp","ask_amount","ask_price","bid_price","bid_amount"]
[1719971463559,0.00114,62048.0,62047.0,0.5456228]
[1719971463763,0.00114,62048.0,62047.0,0.69908759]
[1719971464373,0.00114,62048.0,62047.0,0.9940717]
[1719971464569,0.00114,62048.0,62047.0,0.9880717]
[1719971464723,0.19804849,62058.0,62057.0,0.3442]
[1719971464936,0.29804849,62058.0,62057.0,0.4734988]
[1719971465142,0.29804849,62058.0,62057.0,0.52394868]
[1719971465143,0.42695949,62058.0,62057.0,0.52394868]
[1719971465982,0.42695949,62058.0,62057.0,0.53494868]
[1719971466190,0.43197538,62058.0,62057.0,0.53494868]
[1719971466438,0.68979838,62058.0,62057.0,0.1602988]
[1719971466644,0.68979838,62058.0,62057.0,0.1702988]
[1719971466818,0.68478249,62058.0,62057.0,0.1702988]
[1719971467182,0.68979838,62058.0,62057.0,0.1702988]
[1719971467390,0.68979838,62058.0,62057.0,0.1701988]
[1719971467594,0.68979838,62058.0,62057.0,0.1831988]
[1719971468190,0.68979838,62058.0,62057.0,0.1731988]
[1719971468414,0.68979838,62058.0,62057.0,0.1711988]
[1719971468890,0.68979838,62058.0,62057.0,0.1831988]
[1719971469338,0.68979838,62058.0,62057.0,0.1711988]
[1719971469713,0.68979838,62058.0,62057.0,0.1841988]
[1719971469714,0.68478249,62058.0,62057.0,0.1841988]
[1719971469922,0.68979838,62058.0,62057.0,0.1841988]
[1719971470122,0.68478249,62058.0,62057.0,0.1841988]
[1719971470696,0.68478249,62058.0,62057.0,0.2141988]
[1719971471318,0.228911,62058.0,62057.0,0.26874868]
[1719971471465,0.1001,62058.0,62057.0,0.26874868]
[1719971471675,0.229111,62058.0,62057.0,0.26874868]
[1719971472070,0.229211,62058.0,62057.0,0.26874868]
[1719971472479,0.229211,62058.0,62057.0,0.1841988]
[1719971472701,0.229211,62058.0,62057.0,0.1842988]
[1719971473102,0.487034,62058.0,62057.0,0.1842988]
[1719971473799,0.744857,62058.0,62057.0,0.1842988]
[1719971474037,0.74987289,62058.0,62057.0,0.1843988]
[1719971474625,0.74987289,62058.0,62057.0,0.1844988]
[1719971476063,0.74987289,62058.0,62057.0,0.1845988]
[1719971476842,0.74987289,62058.0,62057.0,0.1855228]
[1719971477040,0.75071289,62058.0,62057.0,0.1855228]
[1719971478531,1.03753589,62058.0,62057.0,0.1855228]
[1719971478743,1.23223628,62058.0,62057.0,0.1855228]
[1719971478950,1.48712186,62058.0,62057.0,0.025324]
[1719971479153,1.48713279,62058.0,62057.0,0.025324]
[1719971479353,1.36643628,62058.0,62057.0,0.025324]
[1719971480336,1.36643761,62058.0,62057.0,0.014324]
[1719971480722,1.36643761,62058.0,62057.0,0.018324]
[1719971481283,1.36643761,62058.0,62057.0,0.005324]
[1719971481484,1.36643761,62058.0,62057.0,0.010324]
[1719971483467,1.35303589,62058.0,62057.0,0.010324]
[1719971483724,1.36643749,62058.0,62057.0,0.010324]
[1719971485764,1.42643749,62058.0,62057.0,0.010324]
[1719971485952,1.51140835,62058.0,62057.0,0.010324]
[1719971486107,1.76923135,62058.0,62057.0,0.010324]
[1719971486519,1.61085889,62058.0,62057.0,0.010324]
[1719971486883,1.7692958,62058.0,62057.0,0.010324]
[1719971487097,1.76929719,62058.0,62057.0,0.010324]
[1719971487275,1.76929719,62058.0,62057.0,0.006324]
[1719971487673,1.77429719,62058.0,62057.0,0.007324]
[1719971487851,1.83429719,62058.0,62057.0,0.007324]
[1719971488421,1.82929719,62058.0,62057.0,0.001324]
[1719971488645,1.99566025,62058.0,62057.0,0.002324]
[1719971488818,1.84962386,62058.0,62057.0,0.002324]
[1719971489061,1.89992081,62058.0,62057.0,0.001324]
[1719971489260,1.90092081,62058.0,62057.0,0.001324]
[1719971489461,1.89992081,62058.0,62057.0,0.001324]
[1719971489843,1.90026212,62058.0,62057.0,0.001324]
[1719971490606,1.73989906,62058.0,62057.0,0.001324]
[1719971490787,1.74089906,62058.0,62057.0,0.001324]
[1719971490988,1.74589906,62058.0,62057.0,0.002324]
[1719971491210,1.68926184,62058.0,62057.0,0.002324]
[1719971491411,1.69026184,62058.0,62057.0,0.002324]
[1719971491854,1.68526184,62058.0,62057.0,0.001324]
[1719971492031,1.68526184,62058.0,62057.0,0.002324]
[1719971492032,1.83528499,62058.0,62057.0,0.002324]
[1719971492232,1.37343884,62058.0,62057.0,0.002324]
[1719971492440,1.43153884,62058.0,62057.0,0.001324]
[1719971492818,1.43753884,62058.0,62057.0,0.003324]
[1719971493018,1.43753745,62058.0,62057.0,0.003324]
[1719971494216,1.29833745,62058.0,62057.0,0.00136097]
[1719971494368,1.30333745,62058.0,62057.0,0.00136097]
[1719971494744,1.29733745,62058.0,62057.0,0.00036097]
[1719971494949,1.29833745,62058.0,62057.0,0.00136097]
[1719971495164,1.30233745,62058.0,62057.0,0.00036097]
[1719971495565,1.05693745,62058.0,62057.0,0.16065977]
[1719971495778,1.09303745,62058.0,62057.0,0.31582575]
[1719971496200,1.07963589,62058.0,62057.0,0.31582575]
[1719971496408,1.07963589,62058.0,62057.0,0.29975977]
[1719971496409,1.09103668,62058.0,62057.0,0.29975977]
[1719971496609,1.07763589,62058.0,62057.0,0.29975977]
[1719971496944,1.0920367,62058.0,62057.0,0.29975977]
[1719971497061,1.0880367,62058.0,62057.0,0.29975977]
[1719971497267,1.1170367,62058.0,62057.0,0.29975977]
[1719971497464,1.1170367,62058.0,62057.0,0.16065977]
[1719971497924,1.32212081,62058.0,62057.0,0.16065977]
[1719971498079,1.3601367,62058.0,62057.0,0.16065977]
[1719971498280,1.3601367,62058.0,62057.0,0.16165977]
[1719971498482,1.3561367,62058.0,62057.0,0.16175977]
[1719971499151,1.3561367,62058.0,62057.0,0.16075977]
[1719971499500,1.35713733,62058.0,62057.0,0.16075977]
[1719971500081,1.22093733,62058.0,62057.0,0.16075977]
[1719971501143,1.21993733,62058.0,62057.0,0.16075977]
[1719971501293,1.22393733,62058.0,62057.0,0.16075977]
[1719971501499,1.22493733,62058.0,62057.0,0.16075977]
[1719971501843,1.22093733,62058.0,62057.0,0.16075977]
[1719971502046,1.22293733,62058.0,62057.0,0.16085977]
[1719971503247,1.05393733,62058.0,62057.0,0.16085977]
[1719971504088,0.79611433,62058.0,62057.0,0.16085977]
[1719971504291,0.62317598,62058.0,62057.0,0.16085977]
[1719971504492,0.62317598,62058.0,62057.0,0.19185977]
[1719971504493,0.488874,62058.0,62057.0,0.19185977]
[1719971504869,0.487874,62058.0,62057.0,0.16085977]
[1719971505093,0.487874,62058.0,62057.0,0.16185977]
[1719971505245,0.487874,62058.0,62057.0,0.19285977]
[1719971505649,0.487874,62058.0,62057.0,0.16185977]
[1719971506417,0.10114,62058.0,62057.0,0.49655977]
[1719971506671,0.00114,62058.0,62057.0,0.54653802]
[1719971507850,0.00114,62058.0,62057.0,0.55053802]
[1719971508246,0.00114,62058.0,62057.0,0.55953802]
[1719971508456,0.00114,62058.0,62057.0,0.54553802]
[1719971508680,0.00114,62058.0,62057.0,0.55953802]
[1719971509785,0.00114,62058.0,62057.0,0.57353802]
[1719971510210,0.00114,62058.0,62057.0,0.55953802]
[1719971510370,0.00114,62058.0,62057.0,0.50955977]
[1719971510570,0.00114,62058.0,62057.0,0.52355977]
[1719971511491,0.00114,62058.0,62057.0,0.50955977]
[1719971511845,0.00114,62058.0,62057.0,0.52355977]
[1719971513346,0.00114,62058.0,62057.0,0.47855977]
[1719971513849,0.00114,62058.0,62057.0,0.49255977]
[1719971514768,0.00114,62058.0,62057.0,0.52355977]
[1719971515008,0.10114,62058.0,62057.0,0.49255977]
[1719971515174,0.10114,62058.0,62057.0,0.47855977]
[1719971515553,0.10114,62058.0,62057.0,0.32435977]
[1719971515758,0.230051,62058.0,62057.0,0.32435977]
[1719971516168,0.745697,62058.0,62057.0,0.18885977]
[1719971516569,0.745697,62058.0,62057.0,0.17485977]
[1719971516765,0.745697,62058.0,62057.0,0.16085977]
[1719971516963,0.745697,62058.0,62057.0,0.17485977]
[1719971517165,0.745697,62058.0,62057.0,0.18885977]
[1719971517364,0.75071289,62058.0,62057.0,0.17485977]
[1719971517747,0.745697,62058.0,62057.0,0.18885977]
[1719971517961,0.75071289,62058.0,62057.0,0.18885977]
[1719971518664,0.77971289,62058.0,62057.0,0.18885977]
[1719971518923,1.20743589,62058.0,62057.0,0.18885977]
[1719971519245,1.20743589,62058.0,62057.0,0.20285977]
[1719971519452,1.22083664,62058.0,62057.0,0.20285977]
[1719971519651,1.22083664,62058.0,62057.0,0.17485977]
[1719971519949,1.27253589,62058.0,62057.0,0.18485977]
[1719971520194,1.28593638,62058.0,62057.0,0.18485977]
[1719971520405,1.28593638,62058.0,62057.0,0.17085977]
[1719971520817,1.28593638,62058.0,62057.0,0.17985977]
[1719971521020,1.28593643,62058.0,62057.0,0.17985977]
[1719971522438,1.90722249,62058.0,62057.0,0.01956097]
[1719971522802,2.22222827,62058.0,62057.0,0.01956097]
[1719971523219,2.38531713,62058.0,62057.0,0.01956097]
[1719971523425,2.38531713,62058.0,62057.0,0.01056097]
[1719971523645,2.15164495,62058.0,62057.0,0.01056097]
[1719971523838,2.38394841,62058.0,62057.0,0.01056097]
[1719971524269,2.38398814,62058.0,62057.0,0.01056097]
[1719971524531,2.22188877,62058.0,62057.0,0.01056097]
[1719971524743,2.56479106,62058.0,62057.0,0.01056097]
[1719971524953,2.56479106,62058.0,62057.0,0.00056097]
[1719971525362,2.56679106,62058.0,62057.0,0.00156097]
[1719971525607,2.56479106,62058.0,62057.0,0.00056097]
[1719971525819,2.66149106,62058.0,62057.0,0.00056097]
[1719971526239,2.37149106,62058.0,62057.0,0.00256097]
[1719971526654,2.67149106,62058.0,62057.0,0.00256097]
[1719971526878,2.60224724,62058.0,62057.0,0.00256097]
[1719971527098,2.6714705,62058.0,62057.0,0.00256097]
[1719971527322,2.83450396,62058.0,62057.0,0.00256097]
[1719971529453,2.6714705,62058.0,62057.0,0.00256097]
[1719971530234,2.9714705,62058.0,62057.0,0.00256097]
[1719971532538,2.91565125,62058.0,62057.0,0.00256097]
[1719971532779,2.61565125,62058.0,62057.0,0.00256097]
[1719971533422,2.91565125,62058.0,62057.0,0.00256097]
[1719971533627,3.13441343,62058.0,62057.0,0.00256097]
[1719971534288,3.13440071,62058.0,62057.0,0.00256097]
[1719971534931,3.13440071,62058.0,62047.0,0.001124]
[1719971534932,1.51226789,62048.0,62047.0,0.001124]
[1719971535145,2.0118719,62048.0,62047.0,0.001124]
[1719971535488,2.45199969,62048.0,62047.0,0.001124]
[1719971535599,2.29679567,62048.0,62047.0,0.001124]
[1719971536080,2.2337119,62048.0,62047.0,0.001124]
[1719971536327,2.3646439,62048.0,62047.0,0.001124]
[1719971536557,2.65123989,62048.0,62047.0,0.001124]
[1719971536803,3.04358408,62048.0,62047.0,0.001124]
[1719971537035,2.50760295,62048.0,62047.0,0.001124]
[1719971537260,2.74706065,62048.0,62047.0,0.002124]
[1719971537488,2.57769271,62048.0,62047.0,0.002124]
[1719971537715,2.41732965,62048.0,62047.0,0.002124]
[1719971537942,2.41532965,62048.0,62047.0,0.002124]
[1719971538181,2.42332965,62048.0,62047.0,0.003124]
[1719971538406,2.36713375,62048.0,62047.0,0.003124]
[1719971539120,2.66713375,62048.0,62047.0,0.003124]
[1719971539405,2.88346234,62048.0,62047.0,0.003124]
[1719971539631,2.88346234,62048.0,62031.0,0.000924]
[1719971539632,0.902758,62032.0,62031.0,0.000924]
[1719971539856,1.165558,62032.0,62031.0,0.000924]
[1719971541276,1.165558,62032.0,62031.0,0.060924]
[1719971541498,1.166558,62032.0,62031.0,0.000924]
[1719971541725,1.166458,62032.0,62031.0,0.000924]
[1719971541956,1.424389,62032.0,62031.0,0.000924]
[1719971542182,1.425289,62032.0,62031.0,0.006924]
[1719971544588,1.606289,62032.0,62031.0,0.006924]
[1719971544827,2.01692756,62032.0,62031.0,0.006924]
[1719971545019,1.75899656,62032.0,62031.0,0.006924]
[1719971545222,2.01692756,62032.0,62031.0,0.006924]
[1719971545434,1.80089885,62032.0,62031.0,0.000924]
[1719971545696,1.79999885,62032.0,62031.0,0.000924]
[1719971545924,2.05902985,62032.0,62031.0,0.005924]
[1719971546363,2.21849291,62032.0,62031.0,0.000924]
[1719971546598,1.80029885,62032.0,62031.0,0.001924]
[1719971546799,1.82529885,62032.0,62031.0,0.002924]
[1719971547042,1.82529885,62032.0,62023.0,0.00954]
[1719971547043,0.3,62028.0,62023.0,0.00954]
[1719971547267,0.2,62030.0,62011.0,1e-06]
[1719971547268,0.3,62012.0,62011.0,1e-06]
[1719971547490,0.3,62012.0,62008.0,1e-06]
[1719971547491,1.099013,62009.0,62008.0,1e-06]
[1719971547708,1.099013,62009.0,61994.0,0.009229]
[1719971547709,0.903224,62000.0,61994.0,0.009229]
[1719971547930,1.27069255,62000.0,61994.0,0.009229]
[1719971548143,1.52875655,62000.0,61994.0,0.009229]
[1719971548361,1.78672055,62000.0,61994.0,0.009229]
[1719971548614,1.77331299,62000.0,61994.0,0.009229]
[1719971548823,2.23361179,62000.0,61994.0,0.009229]
[1719971549024,3.02661179,62000.0,61994.0,0.009229]
[1719971549246,3.04000351,62000.0,61994.0,0.009229]
[1719971549427,3.20097485,62000.0,61994.0,0.009229]
[1719971549645,3.15513515,62000.0,61994.0,0.009229]
[1719971549852,2.019467,61995.0,61994.0,0.009229]
[1719971549990,2.019467,61995.0,61991.0,0.002]
[1719971549991,0.929048,61992.0,61991.0,0.002]
[1719971550334,1.631567,61985.0,61971.0,0.48293494]
[1719971550530,1.724367,61985.0,61971.0,0.48293494]
[1719971550890,1.76988829,61985.0,61971.0,0.48293494]
[1719971551519,1.76978829,61985.0,61971.0,0.48293494]
[1719971551722,1.261367,61985.0,61976.0,0.06]
[1719971551928,1.261367,61985.0,61982.0,0.1776]
[1719971551929,0.745115,61985.0,61982.0,0.1776]
[1719971552152,0.745015,61985.0,61982.0,0.1776]
[1719971552458,0.1,61985.0,61984.0,0.1695278]
[1719971552638,0.645315,61985.0,61984.0,0.009229]
[1719971552971,1.742567,61985.0,61984.0,0.009229]
[1719971553350,1.77708262,61985.0,61984.0,0.009229]
[1719971553547,2.03520862,61985.0,61984.0,0.009229]
[1719971554016,2.35587048,61985.0,61984.0,0.009229]
[1719971554228,2.65587048,61985.0,61984.0,0.009229]
[1719971554635,1.161702,61978.0,61977.0,0.0125506]
[1719971554846,1.424502,61978.0,61977.0,0.0125506]
[1719971555054,1.47001762,61978.0,61977.0,0.0125506]
[1719971555255,2.06299287,61978.0,61977.0,0.0125506]
[1719971555689,2.06289287,61978.0,61977.0,0.0125506]
[1719971555887,2.06279287,61978.0,61977.0,0.0125506]
[1719971556002,1.46971762,61978.0,61977.0,0.0125506]
[1719971556402,1.447202,61978.0,61977.0,0.0125506]
[1719971556661,1.436202,61978.0,61977.0,0.0125506]
[1719971557064,1.447202,61978.0,61977.0,0.0125506]
[1719971558041,1.435202,61978.0,61977.0,0.0125506]
[1719971558312,1.436202,61978.0,61977.0,0.0125506]
[1719971558490,1.015246,61978.0,61977.0,0.0125506]
[1719971558691,1.014246,61978.0,61977.0,0.0125506]
[1719971559150,1.010246,61978.0,61977.0,0.0125506]
[1719971559447,0.499834,61978.0,61977.0,0.3801506]
[1719971559666,0.486834,61978.0,61977.0,0.3801506]
[1719971559866,0.006,61978.0,61977.0,0.5404494]
[1719971560214,0.0101,61978.0,61977.0,0.4804494]
[1719971560429,0.0101,61978.0,61977.0,0.5404494]
[1719971560626,0.0102,61978.0,61977.0,0.5404494]
[1719971560839,0.0103,61978.0,61977.0,0.4804494]
[1719971561044,0.0103,61978.0,61977.0,0.5404494]
[1719971561247,0.0043,61978.0,61977.0,0.5404494]
[1719971561419,0.0014,61978.0,61977.0,0.5414494]
[1719971561625,0.0015,61978.0,61977.0,0.5414494]
[1719971561901,0.1,61980.0,61977.0,0.5414494]
[1719971561902,0.1,61980.0,61979.0,0.06]
[1719971562183,0.129071,61981.0,61980.0,0.06]
[1719971562409,0.1,61981.0,61980.0,0.2202988]
[1719971563405,0.229071,61981.0,61980.0,0.2202988]
[1719971563610,0.1,61981.0,61980.0,0.2202988]
[1719971563728,0.1,61983.0,61980.0,0.2202988]
[1719971563923,0.229067,61983.0,61982.0,0.06]
[1719971564122,0.229067,61983.0,61982.0,0.2202988]
[1719971564332,0.229067,61983.0,61982.0,0.2201988]
[1719971564540,0.1,61983.0,61982.0,0.1602988]
[1719971564759,0.1628,62003.0,61991.0,0.0599]
[1719971564970,0.387021,61996.0,61991.0,0.1602988]
[1719971565171,0.1628,62003.0,61991.0,0.1602988]
[1719971565172,0.387145,61992.0,61991.0,0.1602988]
[1719971565427,0.1628,62008.0,61996.0,0.0599]
[1719971565732,0.1628,62008.0,62001.0,0.0599]
[1719971565975,0.64514,62002.0,62001.0,0.0599]
[1719971566520,0.129036,61998.0,61997.0,0.1602988]
[1719971566740,0.129036,61998.0,61997.0,0.2201988]
[1719971566947,0.129033,62000.0,61999.0,0.0599]
[1719971567156,0.129021,62005.0,62004.0,0.2336]
[1719971567952,0.028,62008.0,62004.0,0.2336]
[1719971567953,0.143016,62008.0,62004.0,0.5309988]
[1719971568156,0.014,62008.0,62007.0,0.0599]
[1719971568365,0.129015,62008.0,62007.0,0.2201988]
[1719971568769,0.387015,62013.0,62012.0,0.0599]
[1719971568973,0.12901,62011.0,62010.0,0.0599]
[1719971569173,0.387028,62011.0,62010.0,0.1602988]
[1719971569373,0.387028,62011.0,62010.0,0.2201988]
[1719971570211,0.487028,62011.0,62010.0,0.1602988]
[1719971570414,0.487028,62011.0,62010.0,0.2201988]
[1719971570634,0.47641561,62011.0,62010.0,0.1602988]
[1719971570851,0.41239305,62011.0,62010.0,0.1602988]
[1719971571019,0.67041105,62011.0,62010.0,0.1602988]
[1719971571420,0.67041105,62011.0,62010.0,0.1601988]
[1719971571618,0.67041105,62011.0,62010.0,0.1600988]
[1719971571823,0.645275,61989.0,61988.0,0.04780743]
[1719971572092,1.066185,61989.0,61988.0,0.04780743]
[1719971572293,1.324295,61989.0,61988.0,0.04780743]
[1719971572496,0.258156,61978.0,61977.0,0.0127506]
[1719971572705,0.80819,61978.0,61977.0,0.0127506]
[1719971572849,1.166346,61978.0,61977.0,0.0127506]
[1719971573435,1.166346,61978.0,61977.0,0.0136746]
[1719971573634,1.166346,61978.0,61977.0,0.0266746]
[1719971573835,1.004546,61978.0,61977.0,0.0376746]
[1719971574657,1.004646,61978.0,61977.0,0.0376746]
[1719971574984,0.488334,61978.0,61977.0,0.0376746]
[1719971575593,0.230178,61978.0,61977.0,0.0376746]
[1719971575804,0.488334,61978.0,61977.0,0.0376746]
[1719971576409,0.230178,61978.0,61977.0,0.20773086]
[1719971576638,0.1011,61978.0,61977.0,0.1979734]
[1719971576839,0.0011,61978.0,61977.0,0.1979734]
[1719971577082,0.0011,61978.0,61977.0,0.2578734]
[1719971577489,0.130278,61978.0,61977.0,0.2578734]
[1719971577697,0.230278,61978.0,61977.0,0.2578734]
[1719971577902,0.488434,61978.0,61977.0,0.2578734]
[1719971578103,0.74659,61978.0,61977.0,0.0975746]
[1719971578319,1.004746,61978.0,61977.0,0.0975746]
[1719971579486,0.74659,61978.0,61977.0,0.0975746]
[1719971580505,0.74659,61978.0,61977.0,0.2578734]
[1719971580506,0.230378,61978.0,61977.0,0.2578734]
[1719971580860,0.488534,61978.0,61977.0,0.2578734]
[1719971581877,0.74669,61978.0,61977.0,0.2578734]
[1719971582255,1.004846,61978.0,61977.0,0.0975746]
[1719971582458,0.74669,61978.0,61977.0,0.0975746]
[1719971582669,0.230378,61978.0,61977.0,0.2578734]
[1719971582991,0.488534,61978.0,61977.0,0.2578734]
[1719971584420,0.1013,61978.0,61977.0,0.2578734]
[1719971584663,0.0013,61978.0,61977.0,0.2578734]
[1719971585039,0.0013,61978.0,61977.0,0.25779613]
[1719971585253,0.388534,61978.0,61977.0,0.25779613]
[1719971585459,0.230378,61978.0,61977.0,0.25779613]
[1719971586213,0.488534,61978.0,61977.0,0.25779613]
[1719971587099,0.483534,61978.0,61977.0,0.25779613]
[1719971587861,0.74169,61978.0,61977.0,0.25779613]
[1719971588493,0.74169,61978.0,61977.0,0.03759733]
[1719971588494,0.999846,61978.0,61977.0,0.03759733]
[1719971588694,0.999846,61978.0,61977.0,0.09749733]
[1719971589289,1.2626306,61978.0,61977.0,0.03759733]
[1719971589488,1.162646,61978.0,61977.0,0.03759733]
[1719971589881,1.420802,61978.0,61977.0,0.03759733]
[1719971590120,1.47334589,61978.0,61977.0,0.03759733]
[1719971591450,1.420802,61978.0,61977.0,0.02659733]
[1719971591810,1.420802,61978.0,61977.0,0.03024509]
[1719971592201,1.420802,61978.0,61977.0,0.01724509]
[1719971592599,1.420802,61978.0,61977.0,0.02324509]
[1719971592600,1.97752106,61978.0,61977.0,0.02324509]
[1719971592863,2.33897102,61978.0,61977.0,0.02324509]
[1719971593065,2.5248024,61978.0,61977.0,0.02324509]
[1719971593280,2.56206574,61978.0,61977.0,0.02324509]
[1719971593929,2.56116574,61978.0,61977.0,0.01724509]
[1719971594133,2.57457149,61978.0,61977.0,0.01724509]
[1719971594372,2.7216288,61978.0,61977.0,0.01724509]
[1719971594570,2.73503463,61978.0,61977.0,0.01224509]
[1719971594975,2.73503463,61978.0,61977.0,0.01324509]
[1719971594976,2.58167157,61978.0,61977.0,0.01324509]
[1719971595208,2.58026574,61978.0,61977.0,0.01424509]
[1719971595391,2.58667203,61978.0,61977.0,0.01324509]
[1719971595526,2.58667203,61978.0,61971.0,0.002]
[1719971595527,1.719995,61972.0,61971.0,0.002]
[1719971595737,2.07068824,61972.0,61971.0,0.002]
[1719971595951,2.66940756,61972.0,61971.0,0.002]
[1719971596228,2.35600075,61972.0,61971.0,0.002]
[1719971596469,2.65600075,61972.0,61971.0,0.002]
[1719971596694,2.66940743,61972.0,61971.0,0.002]
[1719971597075,2.67440743,61972.0,61971.0,0.002]
[1719971597615,2.42507248,61972.0,61971.0,0.002]
[1719971597831,2.26470942,61972.0,61971.0,0.002]
[1719971598400,2.21404437,61972.0,61971.0,0.002]
[1719971598621,1.96286337,61972.0,61971.0,0.003]
[1719971599221,1.66286337,61972.0,61971.0,0.003]
[1719971599472,1.50256457,61972.0,61971.0,0.003]
[1719971599691,1.50256573,61972.0,61971.0,0.003]
[1719971599893,1.48915789,61972.0,61971.0,0.003]
[1719971600441,1.48905789,61972.0,61971.0,0.003]
[1719971602328,1.50246992,61972.0,61971.0,0.003]
[1719971602790,1.48905789,61972.0,61971.0,0.003]
[1719971603169,1.65137529,61972.0,61971.0,0.003]
[1719971603382,1.65127503,61972.0,61971.0,0.003]
[1719971603647,1.50236924,61972.0,61971.0,0.003]
[1719971605408,1.50236924,61972.0,61971.0,0.003924]
[1719971606018,1.50236854,61972.0,61971.0,0.003924]
[1719971606219,1.65116854,61972.0,61971.0,0.003924]
[1719971606590,1.65106854,61972.0,61971.0,0.003924]
[1719971606806,1.8114316,61972.0,61971.0,0.003924]
[1719971607009,1.65106854,61972.0,61971.0,0.003924]
[1719971608133,1.50226854,61972.0,61971.0,0.003924]
[1719971608955,1.23067689,61972.0,61971.0,0.003924]
[1719971609200,1.24408852,61972.0,61971.0,0.151424]
[1719971609810,1.24408852,61972.0,61971.0,0.151524]
[1719971610414,1.24408852,61972.0,61971.0,0.211424]
[1719971610415,1.02374463,61972.0,61971.0,0.211424]
[1719971610615,1.010333,61972.0,61971.0,0.211424]
[1719971610814,0.913333,61972.0,61971.0,0.211424]
[1719971611052,0.910333,61972.0,61971.0,0.211424]
[1719971611295,0.903333,61972.0,61971.0,0.210424]
[1719971611707,0.006,61972.0,61971.0,0.4109681]
[1719971611837,0.006,61972.0,61971.0,0.5853681]
[1719971612036,0.129085,61975.0,61974.0,0.0599]
[1719971612382,0.129085,61975.0,61974.0,0.2201988]
[1719971612815,0.12908,61977.0,61976.0,0.0599]
[1719971613014,0.130218,61978.0,61977.0,0.2083]
[1719971613186,0.130218,61978.0,61977.0,0.3685988]
[1719971613967,0.388374,61978.0,61977.0,0.3685988]
[1719971614169,0.388374,61978.0,61977.0,0.3705988]
[1719971614372,0.489374,61978.0,61977.0,0.3705988]
[1719971615996,0.490374,61978.0,61977.0,0.3805988]
[1719971616761,0.10314,61978.0,61977.0,0.5599988]
[1719971616940,0.00314,61978.0,61977.0,0.5599988]
[1719971617138,0.10314,61978.0,61977.0,0.5599988]
[1719971617720,0.10314,61978.0,61977.0,0.5499988]
[1719971617721,0.10214,61978.0,61977.0,0.5499988]
[1719971618127,0.00314,61978.0,61977.0,0.5609988]
[1719971618485,0.00314,61978.0,61977.0,0.5499988]
[1719971618684,0.00214,61978.0,61977.0,0.5499988]
[1719971618984,0.00214,61978.0,61977.0,0.64799868]
[1719971619124,0.00314,61978.0,61977.0,0.61999868]
[1719971619327,0.10314,61978.0,61977.0,0.5619988]
[1719971619533,0.10314,61978.0,61977.0,0.5919988]
[1719971620852,0.00314,61978.0,61977.0,0.5919988]
[1719971621742,0.00314,61978.0,61977.0,0.6149988]
[1719971621938,0.00314,61978.0,61977.0,0.7440788]
[1719971622092,0.00314,61978.0,61977.0,1.16260186]
[1719971622293,0.00314,61978.0,61977.0,1.46260186]
[1719971622713,0.00314,61978.0,61977.0,0.90444186]
[1719971622940,0.00314,61978.0,61977.0,0.77536186]
[1719971623928,0.00314,61978.0,61977.0,0.90444186]
[1719971624109,0.00314,61978.0,61977.0,0.77536186]
[1719971625300,0.00314,61978.0,61977.0,0.90444186]
[1719971625459,0.1,61988.0,61987.0,0.3853]
[1719971625661,0.129047,61993.0,61992.0,0.0599]
[1719971625861,0.129047,61993.0,61992.0,0.2201988]
[1719971626065,0.229047,61993.0,61992.0,0.2201988]
[1719971628675,0.233047,61993.0,61992.0,0.2200988]
[1719971629360,0.104,61993.0,61992.0,0.2500988]
[1719971629563,0.004,61993.0,61992.0,0.28442428]
[1719971629720,0.011,61993.0,61992.0,0.28542428]
[1719971629925,0.107,61993.0,61992.0,0.31542428]
[1719971630140,0.107,61993.0,61992.0,0.5918988]
[1719971630141,0.008,61993.0,61992.0,0.5918988]
[1719971630587,0.007,61993.0,61992.0,0.5888988]
[1719971631015,0.258055,62003.0,61996.0,0.0598]
[1719971631164,0.387081,62003.0,62002.0,0.0598]
[1719971631343,0.387081,62003.0,62002.0,0.5320988]
[1719971631600,0.387081,62003.0,62002.0,0.58530868]
[1719971631855,0.387081,62003.0,62002.0,0.5320988]
[1719971632366,0.387081,62003.0,62002.0,0.5340988]
[1719971632625,0.129026,62003.0,62002.0,0.5340988]
[1719971632823,0.129026,62003.0,62002.0,0.5320988]
[1719971632968,0.129026,62003.0,62002.0,0.58830868]
[1719971633927,0.129024,62004.0,62003.0,0.0597]
[1719971634166,0.387071,62004.0,62003.0,0.2199988]
[1719971634351,0.387071,62004.0,62003.0,0.2198988]
[1719971634978,0.387071,62004.0,62003.0,0.2197988]
[1719971635182,0.387171,62004.0,62003.0,0.2197988]
[1719971635558,0.645218,62004.0,62003.0,0.2197988]
[1719971635765,0.646218,62004.0,62003.0,0.2267988]
[1719971636177,0.904265,62004.0,62003.0,0.2267988]
[1719971636549,0.904265,62004.0,62003.0,0.2287988]
[1719971636550,0.905265,62004.0,62003.0,0.2287988]
[1719971637341,0.905265,62004.0,62003.0,0.1692988]
[1719971637748,0.905265,62004.0,62003.0,0.2287988]
[1719971638143,1.005265,62004.0,62003.0,0.1692988]
[1719971638853,1.005265,62004.0,62003.0,0.2287988]
[1719971641148,1.005265,62004.0,62003.0,0.1692988]
[1719971641479,1.6889385,62004.0,62003.0,0.009]
[1719971641680,1.588412,62004.0,62003.0,0.009]
[1719971642401,1.588512,62004.0,62003.0,0.009]
[1719971642802,1.587512,62004.0,62003.0,0.007]
[1719971643773,1.63114385,62004.0,62003.0,0.007]
[1719971644078,1.161234,62003.0,62002.0,0.0004]
[1719971644281,1.261234,62003.0,62002.0,0.0004]
[1719971646257,1.22913774,62003.0,62002.0,0.0004]
[1719971646724,1.23213774,62003.0,62002.0,0.0004]
[1719971648902,1.28908253,62003.0,62002.0,0.0004]
[1719971649312,1.28938253,62003.0,62002.0,0.0004]
[1719971649490,1.34004758,62003.0,62002.0,0.0004]
[1719971651333,1.32663464,62003.0,62002.0,0.0004]
[1719971651520,1.34004562,62003.0,62002.0,0.0004]
[1719971652238,1.28908057,62003.0,62002.0,0.0004]
[1719971652824,1.2890809,62003.0,62002.0,0.0004]
[1719971654917,1.28906809,62003.0,62002.0,0.0004]
[1719971658021,1.27566959,62003.0,62002.0,0.0004]
[1719971658261,1.28906577,62003.0,62002.0,0.0004]
[1719971658435,1.27566959,62003.0,62002.0,0.0004]
[1719971658609,1.28906534,62003.0,62002.0,0.0004]
[1719971661069,1.28906265,62003.0,62002.0,0.0004]